[Event "Late-Titled-Tuesday-Blitz-December-26-2023"]
[Site "Chess.com"]
[Date "2023.12.26"]
[Round "4"]
[White "guillembaches"]
[Black "albi1999"]
[Result "1/2-1/2"]
[WhiteElo "2504"]
[BlackElo "2651"]
[TimeControl "180+1"]
[EndTime "14:40:11 PST"]
[Termination "Game drawn by repetition"]

1. Nf3 {[%clk 0:03:00.9]} 1... Nf6 {[%clk 0:02:59.8]} 2. d4 {[%clk 0:03:01.2]}
2... g6 {[%clk 0:02:59.6]} 3. Bg5 {[%clk 0:03:01.6]} 3... Bg7 {[%clk 0:02:59.2]}
4. Nbd2 {[%clk 0:03:01.7]} 4... O-O {[%clk 0:02:58.7]} 5. c3 {[%clk 0:03:02]}
5... d6 {[%clk 0:02:58.9]} 6. e4 {[%clk 0:03:00.8]} 6... Nc6 {[%clk 0:02:59.4]}
7. Bd3 {[%clk 0:03:00.9]} 7... e5 {[%clk 0:02:59.7]} 8. O-O {[%clk 0:02:55.5]}
8... h6 {[%clk 0:02:58.5]} 9. Bh4 {[%clk 0:02:55.1]} 9... g5 {[%clk 0:02:55]}
10. Bg3 {[%clk 0:02:55]} 10... g4 {[%clk 0:02:54.2]} 11. dxe5 {[%clk 0:02:23.7]}
11... Nh5 {[%clk 0:02:42.1]} 12. Nd4 {[%clk 0:02:13]} 12... Nxe5 {[%clk
0:02:34.8]} 13. Be2 {[%clk 0:02:01.5]} 13... Nxg3 {[%clk 0:02:29.5]} 14. hxg3
{[%clk 0:02:00.3]} 14... h5 {[%clk 0:02:27.2]} 15. Nc4 {[%clk 0:01:51.8]} 15...
Qg5 {[%clk 0:02:15.6]} 16. Ne3 {[%clk 0:01:42.8]} 16... Re8 {[%clk 0:02:02.2]}
17. Ndf5 {[%clk 0:01:38.6]} 17... Bh8 {[%clk 0:01:58.3]} 18. Qc2 {[%clk
0:01:31.1]} 18... Bd7 {[%clk 0:01:53.7]} 19. Rfe1 {[%clk 0:01:25.2]} 19... Rad8
{[%clk 0:01:47.6]} 20. Bf1 {[%clk 0:01:20.2]} 20... Ng6 {[%clk 0:01:46.2]} 21.
Rad1 {[%clk 0:01:13.3]} 21... Be5 {[%clk 0:01:43.4]} 22. Nd5 {[%clk 0:00:58.1]}
22... c6 {[%clk 0:01:37.8]} 23. Nde3 {[%clk 0:00:53.6]} 23... h4 {[%clk
0:01:29.4]} 24. gxh4 {[%clk 0:00:53.1]} 24... Nxh4 {[%clk 0:01:30.3]} 25. Nxh4
{[%clk 0:00:49.5]} 25... Qxh4 {[%clk 0:01:31.2]} 26. g3 {[%clk 0:00:48.1]} 26...
Qh5 {[%clk 0:01:20.2]} 27. Bg2 {[%clk 0:00:43.3]} 27... Be6 {[%clk 0:01:19.2]}
28. Nf5 {[%clk 0:00:35]} 28... Qg5 {[%clk 0:01:08]} 29. b3 {[%clk 0:00:33]}
29... Qf6 {[%clk 0:00:53.8]} 30. c4 {[%clk 0:00:29.2]} 30... Bxf5 {[%clk
0:00:53.2]} 31. exf5 {[%clk 0:00:28.3]} 31... Bd4 {[%clk 0:00:53.5]} 32. Re4
{[%clk 0:00:23.8]} 32... Bc5 {[%clk 0:00:27.3]} 33. Rde1 {[%clk 0:00:19.9]}
33... Kf8 {[%clk 0:00:24.8]} 34. Rxe8+ {[%clk 0:00:19.2]} 34... Rxe8 {[%clk
0:00:25.7]} 35. Rxe8+ {[%clk 0:00:19.1]} 35... Kxe8 {[%clk 0:00:26.6]} 36. Qe4+
{[%clk 0:00:19.2]} 36... Kf8 {[%clk 0:00:24.6]} 37. Qxg4 {[%clk 0:00:19]} 37...
Qa1+ {[%clk 0:00:25]} 38. Bf1 {[%clk 0:00:19.4]} 38... Qxa2 {[%clk 0:00:25.1]}
39. Qf3 {[%clk 0:00:16.6]} 39... a5 {[%clk 0:00:23.8]} 40. Kg2 {[%clk
0:00:16.5]} 40... Qb2 {[%clk 0:00:22.9]} 41. g4 {[%clk 0:00:14.4]} 41... Qf6
{[%clk 0:00:22.1]} 42. Qf4 {[%clk 0:00:13.2]} 42... Bd4 {[%clk 0:00:21.7]} 43.
g5 {[%clk 0:00:12.5]} 43... Qe7 {[%clk 0:00:17.9]} 44. f6 {[%clk 0:00:12.1]}
44... Qe5 {[%clk 0:00:14.8]} 45. Qxe5 {[%clk 0:00:12.3]} 45... dxe5 {[%clk
0:00:14.6]} 46. Kf3 {[%clk 0:00:11.5]} 46... Bb2 {[%clk 0:00:14]} 47. Bd3 {[%clk
0:00:11.4]} 47... Bc1 {[%clk 0:00:14]} 48. Kg4 {[%clk 0:00:11.5]} 48... Bd2
{[%clk 0:00:12.5]} 49. f3 {[%clk 0:00:11.7]} 49... Bf4 {[%clk 0:00:12.4]} 50.
Kf5 {[%clk 0:00:11.9]} 50... Ke8 {[%clk 0:00:12.3]} 51. g6 {[%clk 0:00:12.1]}
51... fxg6+ {[%clk 0:00:12.8]} 52. Kxg6 {[%clk 0:00:12.4]} 52... Kf8 {[%clk
0:00:13.5]} 53. f7 {[%clk 0:00:12.5]} 53... Bg3 {[%clk 0:00:13]} 54. Bf5 {[%clk
0:00:12.6]} 54... b5 {[%clk 0:00:12.6]} 55. cxb5 {[%clk 0:00:12.3]} 55... cxb5
{[%clk 0:00:13.5]} 56. Bd7 {[%clk 0:00:12.4]} 56... a4 {[%clk 0:00:13.5]} 57.
bxa4 {[%clk 0:00:11.7]} 57... bxa4 {[%clk 0:00:14.4]} 58. Bxa4 {[%clk
0:00:11.8]} 58... Bf4 {[%clk 0:00:15]} 59. Bb3 {[%clk 0:00:12.1]} 59... Bg3
{[%clk 0:00:15.4]} 60. Bd5 {[%clk 0:00:12.4]} 60... Bf4 {[%clk 0:00:16.3]} 61.
Kf5 {[%clk 0:00:12.6]} 61... Bg3 {[%clk 0:00:16.8]} 62. Kg6 {[%clk 0:00:13]}
62... Bf4 {[%clk 0:00:17.7]} 63. Be4 {[%clk 0:00:13.1]} 63... Bg3 {[%clk
0:00:18.2]} 64. Bf5 {[%clk 0:00:13.4]} 64... Bf4 {[%clk 0:00:19.1]} 65. Bh3
{[%clk 0:00:13.7]} 65... Bg3 {[%clk 0:00:19.6]} 66. Bf1 {[%clk 0:00:13.8]} 66...
Bf4 {[%clk 0:00:20.5]} 67. Bc4 {[%clk 0:00:14]} 67... Bg3 {[%clk 0:00:21.2]} 68.
Bd5 {[%clk 0:00:14.3]} 1/2-1/2

[Event "Late-Titled-Tuesday-Blitz-December-26-2023"]
[Site "Chess.com"]
[Date "2023.12.26"]
[Round "4"]
[White "FREZZY23"]
[Black "mightysmasher"]
[Result "0-1"]
[WhiteElo "2389"]
[BlackElo "2578"]
[TimeControl "180+1"]
[EndTime "14:40:20 PST"]
[Termination "mightysmasher won on time"]

1. Nf3 {[%clk 0:02:59.9]} 1... d5 {[%clk 0:02:57.4]} 2. d4 {[%clk 0:02:59.3]}
2... Nf6 {[%clk 0:02:56]} 3. g3 {[%clk 0:02:59]} 3... e6 {[%clk 0:02:55.7]} 4.
Bg2 {[%clk 0:02:59.1]} 4... Be7 {[%clk 0:02:56.2]} 5. O-O {[%clk 0:02:59.8]}
5... O-O {[%clk 0:02:56.6]} 6. c4 {[%clk 0:03:00.5]} 6... b6 {[%clk 0:02:56.7]}
7. Ne5 {[%clk 0:03:00.1]} 7... Bb7 {[%clk 0:02:57]} 8. Nc3 {[%clk 0:03:00.7]}
8... Nbd7 {[%clk 0:02:57.1]} 9. Qa4 {[%clk 0:03:00.6]} 9... c5 {[%clk
0:02:47.6]} 10. Nxd7 {[%clk 0:02:57]} 10... Qxd7 {[%clk 0:02:47.2]} 11. Qxd7
{[%clk 0:02:56.3]} 11... Nxd7 {[%clk 0:02:46.8]} 12. dxc5 {[%clk 0:02:57]} 12...
Nxc5 {[%clk 0:02:46.4]} 13. cxd5 {[%clk 0:02:57.6]} 13... exd5 {[%clk
0:02:46.3]} 14. Nxd5 {[%clk 0:02:58.2]} 14... Bxd5 {[%clk 0:02:46.6]} 15. Bxd5
{[%clk 0:02:59]} 15... Rad8 {[%clk 0:02:46.3]} 16. Rd1 {[%clk 0:02:55.3]} 16...
Bf6 {[%clk 0:02:41.1]} 17. Rb1 {[%clk 0:02:54.2]} 17... Rd7 {[%clk 0:02:35.3]}
18. Bb3 {[%clk 0:02:16]} 18... Re7 {[%clk 0:02:26.3]} 19. Bc4 {[%clk 0:02:13.4]}
19... Re4 {[%clk 0:02:22]} 20. b3 {[%clk 0:02:10.2]} 20... Rfe8 {[%clk
0:02:06.1]} 21. f3 {[%clk 0:02:06.2]} 21... R4e7 {[%clk 0:02:01.7]} 22. e4
{[%clk 0:02:02.5]} 22... g5 {[%clk 0:01:53]} 23. Be3 {[%clk 0:01:59.7]} 23... g4
{[%clk 0:01:49.2]} 24. fxg4 {[%clk 0:01:37.9]} 24... Rxe4 {[%clk 0:01:38.6]} 25.
Bxc5 {[%clk 0:01:37.8]} 25... bxc5 {[%clk 0:01:37.9]} 26. Rf1 {[%clk 0:01:36.9]}
26... Kg7 {[%clk 0:01:34]} 27. g5 {[%clk 0:01:34.7]} 27... Bd4+ {[%clk 0:01:30]}
28. Kg2 {[%clk 0:01:34.7]} 28... R8e7 {[%clk 0:01:29.2]} 29. Rf5 {[%clk
0:01:33.4]} 29... f6 {[%clk 0:01:17.7]} 30. gxf6+ {[%clk 0:01:30.7]} 30... Bxf6
{[%clk 0:01:17]} 31. Rbf1 {[%clk 0:01:30.7]} 31... Bd4 {[%clk 0:01:16.5]} 32.
Rf7+ {[%clk 0:01:28.2]} 32... Kh6 {[%clk 0:01:10.5]} 33. Rxe7 {[%clk 0:00:57.7]}
33... Rxe7 {[%clk 0:01:07.9]} 34. h4 {[%clk 0:00:58.1]} 34... Kg7 {[%clk
0:01:06.3]} 35. g4 {[%clk 0:00:55.7]} 35... h6 {[%clk 0:01:02.9]} 36. Rf5 {[%clk
0:00:49.1]} 36... a5 {[%clk 0:00:59.6]} 37. Rd5 {[%clk 0:00:42.8]} 37... Ra7
{[%clk 0:00:51]} 38. Rd6 {[%clk 0:00:40.6]} 38... a4 {[%clk 0:00:48.6]} 39. Bd3
{[%clk 0:00:28.2]} 39... axb3 {[%clk 0:00:48.1]} 40. axb3 {[%clk 0:00:28.6]}
40... Ra2+ {[%clk 0:00:37.3]} 41. Kh3 {[%clk 0:00:20.7]} 41... Be5 {[%clk
0:00:21.2]} 42. Rg6+ {[%clk 0:00:20]} 42... Kf7 {[%clk 0:00:21.3]} 43. g5 {[%clk
0:00:16.5]} 43... h5 {[%clk 0:00:20.8]} 44. Rf6+ {[%clk 0:00:05.4]} 44... Bxf6
{[%clk 0:00:20.5]} 45. gxf6 {[%clk 0:00:06.3]} 45... Kxf6 {[%clk 0:00:21.3]} 46.
Kg3 {[%clk 0:00:05.7]} 46... Ke5 {[%clk 0:00:20.4]} 47. Kf3 {[%clk 0:00:05.2]}
47... Rb2 {[%clk 0:00:19.3]} 48. Bg6 {[%clk 0:00:03.9]} 48... Rxb3+ {[%clk
0:00:18.6]} 49. Ke2 {[%clk 0:00:04.5]} 49... Rb4 {[%clk 0:00:18.6]} 50. Bxh5
{[%clk 0:00:04.5]} 50... Rxh4 {[%clk 0:00:18.5]} 51. Bf7 {[%clk 0:00:04.6]}
51... Kd4 {[%clk 0:00:18.6]} 52. Kd2 {[%clk 0:00:04.5]} 52... c4 {[%clk
0:00:18.8]} 53. Kc2 {[%clk 0:00:04.2]} 53... Rh2+ {[%clk 0:00:18.8]} 54. Kc1
{[%clk 0:00:04.3]} 54... Kc3 {[%clk 0:00:18.6]} 55. Bd5 {[%clk 0:00:04.9]} 55...
Rf2 {[%clk 0:00:17]} 56. Kb1 {[%clk 0:00:02.4]} 56... Rb2+ {[%clk 0:00:13.4]}
57. Ka1 {[%clk 0:00:02.6]} 57... Rb5 {[%clk 0:00:12.5]} 58. Bc6 {[%clk 0:00:01]}
58... Rc5 {[%clk 0:00:12.5]} 0-1

[Event "Late-Titled-Tuesday-Blitz-December-26-2023"]
[Site "Chess.com"]
[Date "2023.12.26"]
[Round "4"]
[White "DuleMudule"]
[Black "Eternauta2400"]
[Result "0-1"]
[WhiteElo "2914"]
[BlackElo "2832"]
[TimeControl "180+1"]
[EndTime "14:40:22 PST"]
[Termination "Eternauta2400 won on time"]

1. d4 {[%clk 0:03:00.9]} 1... Nf6 {[%clk 0:02:59.9]} 2. Bg5 {[%clk 0:03:00.1]}
2... c5 {[%clk 0:03:00]} 3. dxc5 {[%clk 0:02:59.6]} 3... e6 {[%clk 0:02:56.6]}
4. e3 {[%clk 0:02:59.1]} 4... Bxc5 {[%clk 0:02:56.4]} 5. Nd2 {[%clk 0:02:59.8]}
5... O-O {[%clk 0:02:56]} 6. Ngf3 {[%clk 0:02:59.9]} 6... d5 {[%clk 0:02:56.5]}
7. a3 {[%clk 0:02:59.3]} 7... h6 {[%clk 0:02:56.5]} 8. Bh4 {[%clk 0:02:58.1]}
8... Nc6 {[%clk 0:02:56.7]} 9. c4 {[%clk 0:02:53.9]} 9... Be7 {[%clk 0:02:54.7]}
10. Bd3 {[%clk 0:02:52.2]} 10... d4 {[%clk 0:02:53.1]} 11. exd4 {[%clk
0:02:50.8]} 11... Nxd4 {[%clk 0:02:54]} 12. O-O {[%clk 0:02:50.6]} 12... b6
{[%clk 0:02:47.4]} 13. Ne4 {[%clk 0:02:33.9]} 13... Bb7 {[%clk 0:02:36]} 14.
Nxf6+ {[%clk 0:02:33]} 14... Bxf6 {[%clk 0:02:35.1]} 15. Bxf6 {[%clk 0:02:32.3]}
15... Nxf3+ {[%clk 0:01:35.2]} 16. Qxf3 {[%clk 0:02:31.2]} 16... Bxf3 {[%clk
0:01:35.3]} 17. Bxd8 {[%clk 0:02:31.8]} 17... Rfxd8 {[%clk 0:01:35]} 18. Bc2
{[%clk 0:02:30.7]} 18... Be2 {[%clk 0:01:34.4]} 19. Rfc1 {[%clk 0:02:27.5]}
19... Bxc4 {[%clk 0:01:33.5]} 20. Be4 {[%clk 0:02:25.3]} 20... Bd5 {[%clk
0:01:29.2]} 21. Bxd5 {[%clk 0:02:17.1]} 21... Rxd5 {[%clk 0:01:30.1]} 22. g3
{[%clk 0:02:17.1]} 22... a5 {[%clk 0:01:25.5]} 23. Rc6 {[%clk 0:02:15.1]} 23...
Rb5 {[%clk 0:01:25.3]} 24. Rc2 {[%clk 0:01:58]} 24... Rd8 {[%clk 0:01:23.4]} 25.
Re1 {[%clk 0:01:56.4]} 25... Rd3 {[%clk 0:01:22.2]} 26. h4 {[%clk 0:01:55.2]}
26... g6 {[%clk 0:01:17.5]} 27. Re4 {[%clk 0:01:46.3]} 27... Rdb3 {[%clk
0:01:15.3]} 28. Ree2 {[%clk 0:01:42.5]} 28... h5 {[%clk 0:01:14.3]} 29. Kf1
{[%clk 0:01:42.3]} 29... Kg7 {[%clk 0:01:15.2]} 30. Ke1 {[%clk 0:01:42.8]} 30...
Rd5 {[%clk 0:01:13.9]} 31. Re4 {[%clk 0:01:39.3]} 31... Rbd3 {[%clk 0:01:11.4]}
32. Rec4 {[%clk 0:01:29]} 32... Re5+ {[%clk 0:01:05.5]} 33. Kf1 {[%clk
0:01:28.7]} 33... Rd1+ {[%clk 0:01:03.3]} 34. Kg2 {[%clk 0:01:29]} 34... Rb1
{[%clk 0:00:58.2]} 35. Rf4 {[%clk 0:01:25.2]} 35... Rf5 {[%clk 0:00:52.1]} 36.
Rxf5 {[%clk 0:01:24.2]} 36... gxf5 {[%clk 0:00:53]} 37. Kf3 {[%clk 0:01:24.7]}
37... Kf6 {[%clk 0:00:53.6]} 38. Ke3 {[%clk 0:01:22.5]} 38... Ke5 {[%clk
0:00:51.9]} 39. Kd3 {[%clk 0:01:21.1]} 39... Rd1+ {[%clk 0:00:49.4]} 40. Ke3
{[%clk 0:01:07.1]} 40... Rd5 {[%clk 0:00:50.3]} 41. Rc4 {[%clk 0:01:00.3]} 41...
Rc5 {[%clk 0:00:46.4]} 42. Ra4 {[%clk 0:00:42.7]} 42... Rb5 {[%clk 0:00:34.8]}
43. b4 {[%clk 0:00:41.5]} 43... Kd5 {[%clk 0:00:35]} 44. bxa5 {[%clk 0:00:40.4]}
44... bxa5 {[%clk 0:00:35.1]} 45. Rd4+ {[%clk 0:00:40]} 45... Ke5 {[%clk
0:00:35.4]} 46. Ra4 {[%clk 0:00:34.2]} 46... Rc5 {[%clk 0:00:31.5]} 47. Kf3
{[%clk 0:00:33.1]} 47... Kd5 {[%clk 0:00:29.8]} 48. Kf4 {[%clk 0:00:33.3]} 48...
f6 {[%clk 0:00:25]} 49. Kf3 {[%clk 0:00:33]} 49... Kc6 {[%clk 0:00:23.9]} 50.
Rd4 {[%clk 0:00:31.8]} 50... Rc3+ {[%clk 0:00:20.6]} 51. Kg2 {[%clk 0:00:32.4]}
51... Rxa3 {[%clk 0:00:21.2]} 52. Rd8 {[%clk 0:00:32.8]} 52... Rb3 {[%clk
0:00:19.5]} 53. Rh8 {[%clk 0:00:32.9]} 53... Rb7 {[%clk 0:00:19.5]} 54. Rxh5
{[%clk 0:00:31.8]} 54... Ra7 {[%clk 0:00:20]} 55. Rh8 {[%clk 0:00:32.4]} 55...
a4 {[%clk 0:00:20.5]} 56. Rc8+ {[%clk 0:00:33]} 56... Kb5 {[%clk 0:00:20.6]} 57.
Rc1 {[%clk 0:00:32.6]} 57... a3 {[%clk 0:00:21.1]} 58. h5 {[%clk 0:00:32.1]}
58... a2 {[%clk 0:00:21.4]} 59. Ra1 {[%clk 0:00:32.2]} 59... Kb4 {[%clk
0:00:22.1]} 60. h6 {[%clk 0:00:32.2]} 60... Kb3 {[%clk 0:00:22.6]} 61. Kh3
{[%clk 0:00:23.2]} 61... Rh7 {[%clk 0:00:20.5]} 62. g4 {[%clk 0:00:19.7]} 62...
Rxh6+ {[%clk 0:00:20.5]} 63. Kg3 {[%clk 0:00:19.9]} 63... fxg4 {[%clk
0:00:21.2]} 64. Kxg4 {[%clk 0:00:20.3]} 64... Kb2 {[%clk 0:00:21.9]} 65. Re1
{[%clk 0:00:19]} 65... a1=Q {[%clk 0:00:21.6]} 0-1

[Event "Late-Titled-Tuesday-Blitz-December-26-2023"]
[Site "Chess.com"]
[Date "2023.12.26"]
[Round "4"]
[White "giomar27"]
[Black "Thjop"]
[Result "0-1"]
[WhiteElo "2401"]
[BlackElo "2690"]
[TimeControl "180+1"]
[EndTime "14:40:22 PST"]
[Termination "Thjop won by resignation"]

1. e4 {[%clk 0:03:00.9]} 1... e6 {[%clk 0:02:59.8]} 2. d4 {[%clk 0:02:59]} 2...
d5 {[%clk 0:02:59.6]} 3. exd5 {[%clk 0:02:59.8]} 3... exd5 {[%clk 0:02:59.9]} 4.
Bd3 {[%clk 0:02:59.7]} 4... Nc6 {[%clk 0:02:59.7]} 5. c3 {[%clk 0:02:56.3]} 5...
Bd6 {[%clk 0:02:58.4]} 6. Ne2 {[%clk 0:02:56.3]} 6... Nge7 {[%clk 0:02:57.9]} 7.
O-O {[%clk 0:02:55.7]} 7... Bg4 {[%clk 0:02:57.7]} 8. f3 {[%clk 0:02:54.5]} 8...
Bh5 {[%clk 0:02:57.9]} 9. Bf4 {[%clk 0:02:54.6]} 9... Bg6 {[%clk 0:02:57.4]} 10.
Na3 {[%clk 0:02:50.6]} 10... a6 {[%clk 0:02:57.1]} 11. Nc2 {[%clk 0:02:49.4]}
11... O-O {[%clk 0:02:55.7]} 12. Qd2 {[%clk 0:02:49.3]} 12... Re8 {[%clk
0:02:55]} 13. Bxg6 {[%clk 0:02:48.8]} 13... Nxg6 {[%clk 0:02:51.8]} 14. Bxd6
{[%clk 0:02:47.9]} 14... Qxd6 {[%clk 0:02:52.7]} 15. Rae1 {[%clk 0:02:46.9]}
15... Re7 {[%clk 0:02:52]} 16. Ng3 {[%clk 0:02:45.5]} 16... Rxe1 {[%clk
0:02:49.5]} 17. Rxe1 {[%clk 0:02:45.4]} 17... Nce7 {[%clk 0:02:42.6]} 18. Ne3
{[%clk 0:02:35.3]} 18... Qd7 {[%clk 0:02:38]} 19. Ng4 {[%clk 0:02:25.8]} 19...
f6 {[%clk 0:02:33.4]} 20. Qe3 {[%clk 0:02:22.8]} 20... Re8 {[%clk 0:02:31.5]}
21. Qe6+ {[%clk 0:02:21.9]} 21... Qxe6 {[%clk 0:02:31.4]} 22. Rxe6 {[%clk
0:02:22.8]} 22... Kf7 {[%clk 0:02:31.9]} 23. Re2 {[%clk 0:02:18.9]} 23... Nf4
{[%clk 0:02:26.7]} 24. Re3 {[%clk 0:02:12.4]} 24... h5 {[%clk 0:02:24.1]} 25.
Nf2 {[%clk 0:02:12.4]} 25... Nc8 {[%clk 0:02:05.2]} 26. Rxe8 {[%clk 0:02:09.7]}
26... Kxe8 {[%clk 0:02:06.1]} 27. Kf1 {[%clk 0:02:08.6]} 27... Nd6 {[%clk
0:02:06]} 28. Ne2 {[%clk 0:02:07.8]} 28... Ne6 {[%clk 0:02:05.7]} 29. Nd3 {[%clk
0:02:06.7]} 29... g5 {[%clk 0:02:03.9]} 30. g3 {[%clk 0:01:55.8]} 30... a5
{[%clk 0:02:02.8]} 31. b3 {[%clk 0:01:27.2]} 31... b6 {[%clk 0:02:01.9]} 32. Kf2
{[%clk 0:01:03.1]} 32... Kd7 {[%clk 0:02:01.8]} 33. Ke3 {[%clk 0:01:01.8]} 33...
c5 {[%clk 0:02:01.2]} 34. Kd2 {[%clk 0:00:50.7]} 34... Kc6 {[%clk 0:01:58.3]}
35. Nb2 {[%clk 0:00:47.8]} 35... Kb5 {[%clk 0:01:54.6]} 36. a4+ {[%clk
0:00:31.4]} 36... Kc6 {[%clk 0:01:54.5]} 37. Nd3 {[%clk 0:00:28.2]} 37... c4
{[%clk 0:01:49.7]} 38. bxc4 {[%clk 0:00:25.2]} 38... Nxc4+ {[%clk 0:01:48.4]}
39. Kc2 {[%clk 0:00:23.4]} 39... Ne3+ {[%clk 0:01:46.3]} 40. Kb3 {[%clk
0:00:23.5]} 40... Nf1 {[%clk 0:01:43.2]} 41. h3 {[%clk 0:00:20.4]} 41... Nd2+
{[%clk 0:01:42.1]} 42. Kc2 {[%clk 0:00:18.1]} 42... Nxf3 {[%clk 0:01:42.2]} 43.
Nf2 {[%clk 0:00:14]} 43... h4 {[%clk 0:01:27.2]} 44. gxh4 {[%clk 0:00:13]} 44...
Nxh4 {[%clk 0:01:26]} 45. Ng4 {[%clk 0:00:13.1]} 45... f5 {[%clk 0:01:25.6]} 46.
Ne5+ {[%clk 0:00:13.2]} 46... Kd6 {[%clk 0:01:24.2]} 47. Kd3 {[%clk 0:00:09.1]}
47... Ng2 {[%clk 0:01:17.6]} 48. Nf7+ {[%clk 0:00:08.9]} 48... Ke7 {[%clk
0:01:17.3]} 49. Ne5 {[%clk 0:00:09.1]} 49... Ngf4+ {[%clk 0:01:17.5]} 50. Ke3
{[%clk 0:00:08.9]} 50... Nxe2 {[%clk 0:01:15.7]} 51. Kxe2 {[%clk 0:00:08.2]}
51... Nf4+ {[%clk 0:01:16.3]} 52. Kf3 {[%clk 0:00:08.8]} 52... Nxh3 {[%clk
0:01:16.5]} 53. Nc6+ {[%clk 0:00:09.2]} 53... Kd6 {[%clk 0:01:16.2]} 54. Ne5
{[%clk 0:00:08.1]} 54... Nf4 {[%clk 0:01:15.9]} 55. Nf7+ {[%clk 0:00:08.3]}
55... Ke7 {[%clk 0:01:12.3]} 56. Nxg5 {[%clk 0:00:08.5]} 56... Ne6 {[%clk
0:01:12.8]} 57. Nh3 {[%clk 0:00:06.6]} 57... Kf6 {[%clk 0:01:11.7]} 58. Nf2
{[%clk 0:00:06.8]} 58... Kg5 {[%clk 0:01:10.6]} 59. Nd3 {[%clk 0:00:06.9]} 59...
f4 {[%clk 0:01:10.5]} 60. Ne5 {[%clk 0:00:06.9]} 60... Kf5 {[%clk 0:01:10.9]}
61. Nd7 {[%clk 0:00:07]} 61... Ng5+ {[%clk 0:01:11.1]} 62. Ke2 {[%clk
0:00:06.4]} 62... f3+ {[%clk 0:01:10.6]} 63. Ke3 {[%clk 0:00:05.1]} 63... Kg4
{[%clk 0:01:09.8]} 64. Nxb6 {[%clk 0:00:04.1]} 64... Kg3 {[%clk 0:01:08.8]} 65.
Nxd5 {[%clk 0:00:04.4]} 65... f2 {[%clk 0:01:08.9]} 66. Ke2 {[%clk 0:00:04.6]}
66... Ne4 {[%clk 0:00:57.7]} 67. Ne3 {[%clk 0:00:04.6]} 67... Nxc3+ {[%clk
0:00:57.6]} 68. Kd3 {[%clk 0:00:04.9]} 68... Nxa4 {[%clk 0:00:54.7]} 69. Kc4
{[%clk 0:00:04.4]} 69... Nb6+ {[%clk 0:00:52.6]} 70. Kc5 {[%clk 0:00:04.5]}
70... Kf3 {[%clk 0:00:48.7]} 71. Nf1 {[%clk 0:00:04]} 71... a4 {[%clk
0:00:47.4]} 72. Kb4 {[%clk 0:00:03.2]} 72... Ke2 {[%clk 0:00:43.9]} 73. Ng3+
{[%clk 0:00:03.1]} 73... Kf3 {[%clk 0:00:44.3]} 74. Nf1 {[%clk 0:00:03.2]} 74...
Ke4 {[%clk 0:00:44.8]} 75. Kb5 {[%clk 0:00:01.8]} 75... a3 {[%clk 0:00:42.2]}
76. Kxb6 {[%clk 0:00:02.3]} 76... Kxd4 {[%clk 0:00:41.4]} 77. Kb5 {[%clk
0:00:01.1]} 77... a2 {[%clk 0:00:41.2]} 0-1